[Event "Paul Kerese Mälestusfestival 2022 Kiirturniir"]
[Site "Pärnu, Estonia Resort Hotel & Spa"]
[Date "????.??.??"]
[Round "7.3"]
[White "Shirov, Alexei"]
[Black "Agafonov, Yuri"]
[Result "1-0"]
[TimeControl "15 minutit partiile + 3 sek käigule"]
[WhiteTitle "GM"]
[WhiteFideId "2209390"]
[WhiteElo "2621"]
[BlackElo "2018"]

1. e4 {[%clk 00:15:04]} {[%emt 00:00:02]} g6 {[%clk 00:15:06]} {[%emt
00:00:01]} 2. d4 {[%clk 00:15:04]} {[%emt 00:00:02]} Bg7 {[%clk 00:15:08]} 3.
Nc3 {[%clk 00:15:05]} {[%emt 00:00:02]} d6 {[%clk 00:15:09]} {[%emt 00:00:02]}
4. f4 {[%clk 00:15:07]} {[%emt 00:00:02]} a6 {[%clk 00:15:11]} {[%emt
00:00:01]} 5. Nf3 {[%clk 00:15:00]} {[%emt 00:00:08]} Nd7 {[%clk 00:15:04]}
{[%emt 00:00:10]} 6. a4 {[%clk 00:12:51]} {[%emt 00:02:11]} e6 {[%clk
00:14:38]} {[%emt 00:00:30]} 7. h4 {[%clk 00:11:46]} {[%emt 00:01:07]} b6
{[%clk 00:14:21]} {[%emt 00:00:22]} 8. h5 {[%clk 00:11:44]} {[%emt 00:00:05]}
Bb7 {[%clk 00:14:22]} {[%emt 00:00:03]} 9. Bd3 {[%clk 00:11:08]} {[%emt
00:00:37]} Ngf6 {[%clk 00:13:24]} {[%emt 00:01:02]} 10. h6 {[%clk 00:11:05]}
{[%emt 00:00:05]} Bf8 {[%clk 00:13:26]} {[%emt 00:00:01]} 11. Qe2 {[%clk
00:11:04]} {[%emt 00:00:03]} Be7 {[%clk 00:12:45]} {[%emt 00:00:44]} 12. f5
{[%clk 00:09:55]} {[%emt 00:01:11]} gxf5 {[%clk 00:11:34]} {[%emt 00:01:14]} 13.
exf5 {[%clk 00:09:56]} {[%emt 00:00:02]} Rg8 {[%clk 00:11:30]} {[%emt
00:00:08]} 14. fxe6 {[%clk 00:09:45]} {[%emt 00:00:14]} fxe6 {[%clk 00:11:32]}
{[%emt 00:00:01]} 15. Ng5 {[%clk 00:07:44]} {[%emt 00:02:03]} Nf8 {[%clk
00:10:43]} {[%emt 00:00:53]} 16. d5 {[%clk 00:07:44]} {[%emt 00:00:03]} Nxd5
{[%clk 00:08:40]} {[%emt 00:02:06]} 17. Nxe6 {[%clk 00:07:42]} {[%emt
00:00:05]} Nxc3 {[%clk 00:08:05]} {[%emt 00:00:38]} 18. Qh5+ {[%clk 00:07:41]}
{[%emt 00:00:03]} Ng6 {[%clk 00:07:48]} {[%emt 00:00:21]} 19. Nxd8 {[%clk
00:07:40]} {[%emt 00:00:04]} Rxd8 {[%clk 00:07:13]} {[%emt 00:00:37]} 20. bxc3
{[%clk 00:07:34]} {[%emt 00:00:09]} 1-0

[Event "Paul Kerese Mälestusfestival 2022 Kiirturniir"]
[Site "Pärnu, Estonia Resort Hotel & Spa"]
[Date "????.??.??"]
[Round "7.4"]
[White "Olde, Grete"]
[Black "Vohla, Mihkel"]
[Result "0-1"]
[TimeControl "15 minutit partiile + 3 sek käigule"]
[WhiteTitle "WCM"]
[WhiteElo "2054"]
[BlackElo "1720"]

1. e4 {[%clk 00:15:04]} {[%emt 00:00:02]} e6 {[%clk 00:15:03]} {[%emt
00:00:03]} 2. d4 {[%clk 00:15:06]} {[%emt 00:00:02]} d5 {[%clk 00:15:05]}
{[%emt 00:00:01]} 3. exd5 {[%clk 00:15:07]} {[%emt 00:00:02]} exd5 {[%clk
00:15:07]} {[%emt 00:00:01]} 4. Bd3 {[%clk 00:15:07]} {[%emt 00:00:03]} Nf6
{[%clk 00:15:07]} {[%emt 00:00:02]} 5. c3 {[%clk 00:15:08]} {[%emt 00:00:02]}
Be7 {[%clk 00:15:07]} {[%emt 00:00:03]} 6. Nf3 {[%clk 00:15:09]} {[%emt
00:00:02]} O-O {[%clk 00:15:07]} {[%emt 00:00:03]} 7. O-O {[%clk 00:15:09]}
{[%emt 00:00:02]} Bg4 {[%clk 00:15:07]} {[%emt 00:00:03]} 8. Bg5 {[%clk
00:14:56]} {[%emt 00:00:15]} Nbd7 {[%clk 00:15:05]} {[%emt 00:00:06]} 9. Nbd2
{[%clk 00:14:42]} {[%emt 00:00:17]} c5 {[%clk 00:14:55]} {[%emt 00:00:14]} 10.
Qc2 {[%clk 00:13:56]} {[%emt 00:00:48]} h6 {[%clk 00:14:36]} {[%emt 00:00:22]}
11. Bf4 {[%clk 00:13:11]} {[%emt 00:00:46]} Rc8 {[%clk 00:14:33]} {[%emt
00:00:09]} 12. Rfe1 {[%clk 00:12:22]} {[%emt 00:00:52]} Re8 {[%clk 00:14:32]}
{[%emt 00:00:04]} 13. Bf5 {[%clk 00:11:52]} {[%emt 00:00:33]} cxd4 {[%clk
00:14:04]} {[%emt 00:00:32]} 14. Nxd4 {[%clk 00:11:34]} {[%emt 00:00:20]} Qb6
{[%clk 00:13:48]} {[%emt 00:00:19]} 15. N2b3 {[%clk 00:10:35]} {[%emt
00:01:02]} a5 {[%clk 00:13:45]} {[%emt 00:00:06]} 16. a4 {[%clk 00:09:19]}
{[%emt 00:01:19]} Bxf5 {[%clk 00:13:16]} {[%emt 00:00:32]} 17. Nxf5 {[%clk
00:08:57]} {[%emt 00:00:24]} Bf8 {[%clk 00:13:06]} {[%emt 00:00:13]} 18. Nbd4
{[%clk 00:08:54]} {[%emt 00:00:06]} Bc5 {[%clk 00:12:46]} {[%emt 00:00:23]} 19.
Nf3 {[%clk 00:08:01]} {[%emt 00:00:56]} Ne4 {[%clk 00:12:36]} {[%emt 00:00:13]}
20. Be3 {[%clk 00:07:39]} {[%emt 00:00:25]} Qg6 {[%clk 00:12:10]} {[%emt
00:00:29]} 21. Bxc5 {[%clk 00:06:48]} {[%emt 00:00:54]} Qxf5 {[%clk 00:11:12]}
{[%emt 00:01:00]} 22. Bd4 {[%clk 00:06:49]} {[%emt 00:00:03]} Ndf6 {[%clk
00:10:44]} {[%emt 00:00:31]} 23. Nd2 {[%clk 00:06:22]} {[%emt 00:00:30]} Qh5
{[%clk 00:10:05]} {[%emt 00:00:42]} 24. Nxe4 {[%clk 00:06:02]} {[%emt
00:00:23]} Nxe4 {[%clk 00:09:57]} {[%emt 00:00:11]} 25. Re3 {[%clk 00:06:00]}
{[%emt 00:00:05]} Nd6 {[%clk 00:09:35]} {[%emt 00:00:24]} 26. Rae1 {[%clk
00:05:28]} {[%emt 00:00:35]} Rxe3 {[%clk 00:09:28]} {[%emt 00:00:10]} 27. Bxe3
{[%clk 00:05:03]} {[%emt 00:00:28]} Re8 {[%clk 00:09:17]} {[%emt 00:00:14]} 28.
f3 {[%clk 00:04:48]} {[%emt 00:00:18]} Qh4 {[%clk 00:08:51]} {[%emt 00:00:29]}
29. g3 {[%clk 00:03:34]} {[%emt 00:01:17]} Qf6 {[%clk 00:08:49]} {[%emt
00:00:04]} 30. Qf2 {[%clk 00:03:32]} {[%emt 00:00:06]} Nc4 {[%clk 00:08:46]}
{[%emt 00:00:06]} 31. f4 {[%clk 00:02:58]} {[%emt 00:00:37]} Re4 {[%clk
00:07:47]} {[%emt 00:01:02]} 32. b3 {[%clk 00:02:19]} {[%emt 00:00:42]} Nd6
{[%clk 00:07:13]} {[%emt 00:00:37]} 33. Bd4 {[%clk 00:02:13]} {[%emt 00:00:09]}
Qe6 {[%clk 00:07:14]} {[%emt 00:00:02]} 34. Rxe4 {[%clk 00:01:47]} {[%emt
00:00:28]} Qxe4 {[%clk 00:07:05]} {[%emt 00:00:12]} 35. Qe3 {[%clk 00:01:13]}
{[%emt 00:00:38]} Qb1+ {[%clk 00:07:05]} {[%emt 00:00:03]} 36. Kg2 {[%clk
00:01:14]} {[%emt 00:00:02]} Ne4 {[%clk 00:07:06]} {[%emt 00:00:03]} 37. c4
{[%clk 00:01:10]} {[%emt 00:00:07]} Qc2+ {[%clk 00:06:49]} {[%emt 00:00:19]} 38.
Kh3 {[%clk 00:01:06]} {[%emt 00:00:08]} dxc4 {[%clk 00:06:31]} {[%emt
00:00:21]} 39. bxc4 {[%clk 00:01:07]} {[%emt 00:00:02]} f5 {[%clk 00:06:29]}
{[%emt 00:00:04]} 40. Ba1 {[%clk 00:00:07]} {[%emt 00:01:03]} Qxc4 {[%clk
00:06:23]} {[%emt 00:00:09]} 41. Qb6 {[%clk 00:00:06]} {[%emt 00:00:04]} Qf1+
{[%clk 00:06:19]} {[%emt 00:00:07]} 42. Kh4 {[%clk 00:00:07]} {[%emt 00:00:02]}
g5+ {[%clk 00:06:20]} {[%emt 00:00:02]} 43. Kh5 {[%clk 00:00:06]} {[%emt
00:00:04]} Qxa1 {[%clk 00:06:12]} {[%emt 00:00:12]} 44. Kxh6 {[%clk 00:00:05]}
{[%emt 00:00:04]} Qh8+ {[%clk 00:06:07]} {[%emt 00:00:06]} 45. Kg6 {[%clk
00:00:07]} {[%emt 00:00:02]} Qh7# {[%emt 00:00:01]} 0-1

[Event "Paul Kerese Mälestusfestival 2022 Kiirturniir"]
[Site "Pärnu, Estonia Resort Hotel & Spa"]
[Date "????.??.??"]
[Round "7.5"]
[White "Chukavin, Kirill"]
[Black "Mikko, Rondo"]
[Result "1/2-1/2"]
[TimeControl "15 minutit partiile + 3 sek käigule"]
[WhiteTitle "FM"]
[WhiteElo "2418"]
[BlackElo "1893"]

1. e4 {[%clk 00:15:03]} {[%emt 00:00:01]} c6 {[%clk 00:15:04]} {[%emt
00:00:03]} 2. d4 {[%clk 00:15:05]} {[%emt 00:00:01]} d5 {[%clk 00:15:06]} 3.
exd5 {[%clk 00:15:07]} {[%emt 00:00:02]} cxd5 {[%clk 00:15:08]} 4. Bd3 {[%clk
00:15:09]} {[%emt 00:00:01]} g6 {[%clk 00:15:08]} {[%emt 00:00:03]} 5. c3
{[%clk 00:15:08]} {[%emt 00:00:04]} Bg7 {[%clk 00:15:09]} {[%emt 00:00:02]} 6.
Bf4 {[%clk 00:15:03]} {[%emt 00:00:08]} Nc6 {[%clk 00:15:08]} {[%emt 00:00:03]}
7. Nf3 {[%clk 00:15:00]} {[%emt 00:00:07]} Nh6 {[%clk 00:14:15]} {[%emt
00:00:57]} 8. Qd2 {[%clk 00:14:31]} {[%emt 00:00:31]} Nf5 {[%clk 00:14:15]}
{[%emt 00:00:03]} 9. O-O {[%clk 00:14:26]} {[%emt 00:00:07]} O-O {[%clk
00:14:13]} {[%emt 00:00:05]} 10. Na3 {[%clk 00:14:04]} {[%emt 00:00:26]} a6
{[%clk 00:14:07]} {[%emt 00:00:09]} 11. Nc2 {[%clk 00:13:50]} {[%emt 00:00:16]}
Nd6 {[%clk 00:14:03]} {[%emt 00:00:07]} 12. Rae1 {[%clk 00:13:48]} {[%emt
00:00:06]} Bg4 {[%clk 00:13:04]} {[%emt 00:01:01]} 13. Ne5 {[%clk 00:13:43]}
{[%emt 00:00:08]} Nxe5 {[%clk 00:12:55]} {[%emt 00:00:13]} 14. Bxe5 {[%clk
00:13:41]} {[%emt 00:00:06]} f6 {[%clk 00:12:11]} {[%emt 00:00:47]} 15. Bg3
{[%clk 00:12:00]} {[%emt 00:01:44]} Qd7 {[%clk 00:11:54]} {[%emt 00:00:20]} 16.
Ne3 {[%clk 00:11:20]} {[%emt 00:00:43]} Be6 {[%clk 00:11:45]} {[%emt 00:00:11]}
17. h4 {[%clk 00:11:22]} {[%emt 00:00:01]} f5 {[%clk 00:11:07]} {[%emt
00:00:42]} 18. Bxd6 {[%clk 00:11:04]} {[%emt 00:00:21]} Qxd6 {[%clk 00:10:43]}
{[%emt 00:00:27]} 19. f4 {[%clk 00:11:03]} {[%emt 00:00:04]} Bd7 {[%clk
00:10:28]} {[%emt 00:00:18]} 20. g3 {[%clk 00:10:57]} {[%emt 00:00:10]} e6
{[%clk 00:10:26]} {[%emt 00:00:05]} 21. Ng2 {[%clk 00:10:42]} {[%emt 00:00:18]}
h5 {[%clk 00:09:58]} {[%emt 00:00:31]} 22. Re3 {[%clk 00:10:11]} {[%emt
00:00:34]} Kf7 {[%clk 00:09:45]} {[%emt 00:00:15]} 23. Ne1 {[%clk 00:10:10]}
{[%emt 00:00:04]} Bf6 {[%clk 00:09:46]} {[%emt 00:00:02]} 24. Nf3 {[%clk
00:10:12]} {[%emt 00:00:02]} b5 {[%clk 00:09:34]} {[%emt 00:00:14]} 25. Rfe1
{[%clk 00:09:57]} {[%emt 00:00:18]} Rfe8 {[%clk 00:09:28]} {[%emt 00:00:09]} 26.
R3e2 {[%clk 00:07:36]} {[%emt 00:02:24]} Rec8 {[%clk 00:09:14]} {[%emt
00:00:17]} 27. Rf1 {[%clk 00:06:48]} {[%emt 00:00:52]} Kg7 {[%clk 00:09:06]}
{[%emt 00:00:11]} 28. Re3 {[%clk 00:05:39]} {[%emt 00:01:13]} a5 {[%clk
00:08:51]} {[%emt 00:00:18]} 29. a3 {[%clk 00:05:33]} {[%emt 00:00:09]} Rab8
{[%clk 00:08:24]} {[%emt 00:00:30]} 30. b4 {[%clk 00:05:31]} {[%emt 00:00:05]}
axb4 {[%clk 00:07:32]} {[%emt 00:00:55]} 31. axb4 {[%clk 00:05:32]} {[%emt
00:00:02]} Ra8 {[%clk 00:07:32]} {[%emt 00:00:03]} 32. Rc1 {[%clk 00:05:28]}
{[%emt 00:00:07]} Ra3 {[%clk 00:07:02]} {[%emt 00:00:33]} 33. Qb2 {[%clk
00:05:26]} {[%emt 00:00:06]} Qa6 {[%clk 00:06:59]} {[%emt 00:00:05]} 34. Rc2
{[%clk 00:05:11]} {[%emt 00:00:18]} Ra1+ {[%clk 00:05:17]} {[%emt 00:01:46]} 35.
Kg2 {[%clk 00:05:11]} {[%emt 00:00:03]} Qa3 {[%clk 00:05:17]} {[%emt 00:00:03]}
36. Qxa3 {[%clk 00:04:38]} {[%emt 00:00:36]} Rxa3 {[%clk 00:05:19]} {[%emt
00:00:01]} 37. Be2 {[%clk 00:03:14]} {[%emt 00:01:28]} Be7 {[%clk 00:05:02]}
{[%emt 00:00:20]} 38. Ne5 {[%clk 00:02:48]} {[%emt 00:00:28]} Be8 {[%clk
00:05:03]} {[%emt 00:00:02]} 39. Nd3 {[%clk 00:02:33]} {[%emt 00:00:18]} Bd7
{[%clk 00:04:35]} {[%emt 00:00:31]} 40. Nc5 {[%clk 00:02:20]} {[%emt 00:00:16]}
Bxc5 {[%clk 00:04:34]} {[%emt 00:00:04]} 41. dxc5 {[%clk 00:02:04]} {[%emt
00:00:19]} d4 {[%clk 00:04:15]} {[%emt 00:00:22]} 42. Rd3 {[%clk 00:01:21]}
{[%emt 00:00:46]} Bc6+ {[%emt 00:00:19]} 43. Bf3 dxc3 {[%clk 00:03:43]} {[%emt
00:00:18]} 44. Bxc6 {[%clk 00:00:39]} {[%emt 00:00:48]} Rxc6 {[%clk 00:03:45]}
45. Rcxc3 {[%clk 00:00:42]} {[%emt 00:00:01]} Ra4 {[%clk 00:02:28]} {[%emt
00:01:19]} 46. Rd4 {[%clk 00:00:40]} {[%emt 00:00:05]} Kf6 {[%clk 00:02:25]}
{[%emt 00:00:06]} 47. Kf3 {[%clk 00:00:36]} {[%emt 00:00:07]} e5 {[%clk
00:02:04]} {[%emt 00:00:25]} 48. fxe5+ {[%clk 00:00:38]} {[%emt 00:00:01]} Kxe5
{[%clk 00:02:05]} {[%emt 00:00:01]} 49. Rcd3 {[%clk 00:00:37]} {[%emt
00:00:04]} Ra1 {[%clk 00:01:05]} {[%emt 00:01:04]} 50. Rd5+ {[%clk 00:00:29]}
{[%emt 00:00:10]} Ke6 {[%clk 00:01:07]} 51. Kf4 {[%clk 00:00:22]} {[%emt
00:00:11]} Rb1 {[%clk 00:01:03]} {[%emt 00:00:06]} 52. Rd6+ {[%clk 00:00:10]}
{[%emt 00:00:15]} Rxd6 {[%clk 00:01:04]} {[%emt 00:00:02]} 53. Rxd6+ {[%clk
00:00:12]} {[%emt 00:00:02]} Kf7 {[%clk 00:00:59]} {[%emt 00:00:08]} 54. Kg5
{[%clk 00:00:05]} {[%emt 00:00:10]} Rxb4 {[%clk 00:00:58]} {[%emt 00:00:04]} 55.
Rf6+ {[%clk 00:00:04]} {[%emt 00:00:04]} Ke7 {[%clk 00:00:53]} {[%emt
00:00:07]} 56. Kxg6 {[%clk 00:00:04]} {[%emt 00:00:03]} Rg4+ {[%clk 00:00:51]}
{[%emt 00:00:06]} 57. Kxf5 {[%clk 00:00:06]} {[%emt 00:00:01]} Rxg3 {[%clk
00:00:50]} {[%emt 00:00:03]} 58. Re6+ {[%clk 00:00:05]} {[%emt 00:00:05]} Kd7
{[%clk 00:00:50]} {[%emt 00:00:03]} 59. Rb6 {[%clk 00:00:04]} {[%emt 00:00:04]}
Rg4 {[%clk 00:00:50]} {[%emt 00:00:03]} 60. Rxb5 {[%clk 00:00:04]} {[%emt
00:00:03]} Kc6 {[%clk 00:00:49]} {[%emt 00:00:04]} 61. Rb6+ {[%clk 00:00:04]}
{[%emt 00:00:04]} 1/2-1/2

[Event "Paul Kerese Mälestusfestival 2022 Kiirturniir"]
[Site "Pärnu, Estonia Resort Hotel & Spa"]
[Date "????.??.??"]
[Round "7.6"]
[White "Paan, Karel"]
[Black "Golubovskis, Maksims"]
[Result "0-1"]
[TimeControl "15 minutit partiile + 3 sek käigule"]
[BlackTitle "FM"]
[WhiteElo "1803"]
[BlackElo "2209"]

1. d4 {[%clk 00:15:03]} {[%emt 00:00:02]} Nf6 {[%clk 00:15:05]} 2. f4 {[%clk
00:15:05]} d6 {[%clk 00:14:54]} {[%emt 00:00:14]} 3. Nf3 {[%clk 00:15:05]}
{[%emt 00:00:04]} g6 {[%clk 00:14:57]} {[%emt 00:00:01]} 4. g3 {[%clk
00:14:24]} {[%emt 00:00:44]} Bg7 {[%clk 00:14:59]} 5. Bg2 {[%clk 00:14:26]} O-O
{[%clk 00:15:00]} {[%emt 00:00:03]} 6. O-O {[%clk 00:14:26]} {[%emt 00:00:03]}
Nbd7 {[%clk 00:14:54]} {[%emt 00:00:09]} 7. Nbd2 {[%clk 00:13:48]} {[%emt
00:00:42]} e5 {[%clk 00:14:41]} {[%emt 00:00:16]} 8. e3 {[%clk 00:11:05]}
{[%emt 00:02:46]} Qe7 {[%clk 00:14:13]} {[%emt 00:00:31]} 9. h3 {[%clk
00:09:42]} {[%emt 00:01:26]} Rb8 {[%clk 00:13:17]} {[%emt 00:00:59]} 10. Re1
{[%clk 00:09:14]} {[%emt 00:00:31]} b5 {[%clk 00:13:18]} {[%emt 00:00:01]} 11.
b4 {[%clk 00:08:48]} {[%emt 00:00:29]} Nd5 {[%clk 00:12:58]} {[%emt 00:00:23]}
12. Ba3 {[%clk 00:08:03]} {[%emt 00:00:48]} Nc3 {[%clk 00:12:18]} {[%emt
00:00:43]} 13. Qc1 {[%clk 00:08:02]} {[%emt 00:00:04]} Nb6 {[%clk 00:11:54]}
{[%emt 00:00:26]} 14. Bb2 {[%clk 00:06:39]} {[%emt 00:01:26]} Nca4 {[%clk
00:11:48]} {[%emt 00:00:10]} 15. Rb1 {[%clk 00:05:31]} {[%emt 00:01:11]} Nxb2
{[%clk 00:11:31]} {[%emt 00:00:20]} 16. Qxb2 {[%clk 00:04:56]} {[%emt
00:00:38]} Bb7 {[%clk 00:10:51]} {[%emt 00:00:43]} 17. Qa3 {[%clk 00:04:04]}
{[%emt 00:00:54]} Ra8 {[%clk 00:10:29]} {[%emt 00:00:26]} 18. Rbc1 {[%clk
00:03:52]} {[%emt 00:00:14]} e4 {[%clk 00:09:07]} {[%emt 00:01:25]} 19. Nh2
{[%clk 00:03:22]} {[%emt 00:00:32]} d5 {[%clk 00:08:55]} {[%emt 00:00:16]} 20.
Bf1 {[%clk 00:03:12]} {[%emt 00:00:12]} a5 {[%clk 00:08:50]} {[%emt 00:00:09]}
21. Bxb5 {[%clk 00:02:19]} {[%emt 00:00:56]} axb4 {[%clk 00:08:49]} {[%emt
00:00:04]} 22. Qb2 {[%clk 00:02:15]} {[%emt 00:00:07]} c5 {[%clk 00:08:44]}
{[%emt 00:00:08]} 23. c4 {[%clk 00:01:32]} {[%emt 00:00:46]} bxc3 {[%clk
00:08:31]} {[%emt 00:00:16]} 24. Qxc3 {[%clk 00:01:00]} {[%emt 00:00:35]} cxd4
{[%clk 00:08:25]} {[%emt 00:00:10]} 25. exd4 {[%clk 00:00:57]} {[%emt
00:00:04]} Rxa2 {[%clk 00:07:31]} {[%emt 00:00:57]} 26. Nhf3 {[%clk 00:00:11]}
{[%emt 00:00:49]} Qa3 {[%clk 00:07:03]} {[%emt 00:00:31]} 27. Nxe4 {[%clk
00:00:12]} {[%emt 00:00:02]} dxe4 {[%clk 00:06:57]} {[%emt 00:00:09]} 28. Ne5
{[%clk 00:00:06]} {[%emt 00:00:08]} Nd5 {[%clk 00:06:39]} {[%emt 00:00:21]} 29.
Qxa3 {[%emt 00:00:10]} 0-1

[Event "Paul Kerese Mälestusfestival 2022 Kiirturniir"]
[Site "Pärnu, Estonia Resort Hotel & Spa"]
[Date "????.??.??"]
[Round "7.7"]
[White "Shvyrjov, Igor"]
[Black "Paikens, Reinis"]
[Result "1-0"]
[TimeControl "15 minutit partiile + 3 sek käigule"]
[WhiteTitle "GM"]
[WhiteElo "2153"]
[BlackElo "1847"]

1. d4 {[%clk 00:15:03]} {[%emt 00:00:02]} d5 {[%clk 00:15:05]} {[%emt
00:00:02]} 2. Bg5 {[%clk 00:15:04]} {[%emt 00:00:02]} Nf6 {[%clk 00:14:57]}
{[%emt 00:00:11]} 3. Bxf6 {[%clk 00:15:06]} {[%emt 00:00:02]} exf6 {[%clk
00:14:59]} {[%emt 00:00:01]} 4. e3 {[%clk 00:15:07]} {[%emt 00:00:02]} c6
{[%clk 00:15:00]} {[%emt 00:00:02]} 5. c4 {[%clk 00:15:06]} {[%emt 00:00:03]}
Bb4+ {[%clk 00:14:57]} {[%emt 00:00:06]} 6. Nc3 {[%clk 00:15:08]} {[%emt
00:00:02]} O-O {[%clk 00:14:58]} {[%emt 00:00:02]} 7. Qb3 {[%clk 00:15:07]}
{[%emt 00:00:04]} Bxc3+ {[%clk 00:14:49]} {[%emt 00:00:12]} 8. bxc3 {[%clk
00:15:09]} {[%emt 00:00:01]} dxc4 {[%clk 00:14:46]} {[%emt 00:00:07]} 9. Bxc4
{[%clk 00:15:09]} {[%emt 00:00:03]} Nd7 {[%clk 00:14:47]} {[%emt 00:00:02]} 10.
Nf3 {[%clk 00:15:03]} {[%emt 00:00:09]} Nb6 {[%clk 00:14:48]} {[%emt 00:00:02]}
11. Be2 {[%clk 00:14:56]} {[%emt 00:00:09]} Qc7 {[%clk 00:14:09]} {[%emt
00:00:42]} 12. O-O {[%clk 00:14:44]} {[%emt 00:00:15]} Bf5 {[%clk 00:14:08]}
{[%emt 00:00:04]} 13. c4 {[%clk 00:14:27]} {[%emt 00:00:21]} Rfe8 {[%clk
00:14:04]} {[%emt 00:00:06]} 14. a4 {[%clk 00:13:57]} {[%emt 00:00:33]} Nc8
{[%clk 00:13:09]} {[%emt 00:00:58]} 15. a5 {[%clk 00:13:42]} {[%emt 00:00:18]}
Nd6 {[%clk 00:13:07]} {[%emt 00:00:05]} 16. c5 {[%clk 00:13:28]} {[%emt
00:00:18]} Ne4 {[%clk 00:12:53]} {[%emt 00:00:16]} 17. Ra2 {[%clk 00:13:06]}
{[%emt 00:00:25]} g5 {[%clk 00:10:51]} {[%emt 00:02:05]} 18. Bc4 {[%clk
00:12:59]} {[%emt 00:00:11]} Re7 {[%clk 00:10:07]} {[%emt 00:00:47]} 19. Rfa1
{[%clk 00:12:40]} {[%emt 00:00:21]} Rb8 {[%clk 00:09:52]} {[%emt 00:00:17]} 20.
Rb2 {[%clk 00:12:38]} {[%emt 00:00:06]} Kg7 {[%clk 00:09:00]} {[%emt 00:00:55]}
21. Ne1 {[%clk 00:11:32]} {[%emt 00:01:09]} h5 {[%clk 00:08:42]} {[%emt
00:00:21]} 22. f3 {[%clk 00:11:19]} {[%emt 00:00:15]} Ng3 {[%clk 00:08:22]}
{[%emt 00:00:23]} 23. hxg3 {[%clk 00:10:27]} {[%emt 00:00:55]} Qxg3 {[%clk
00:08:23]} {[%emt 00:00:01]} 24. e4 {[%clk 00:09:42]} {[%emt 00:00:49]} h4
{[%clk 00:08:25]} {[%emt 00:00:02]} 25. Qc2 {[%clk 00:07:53]} {[%emt 00:01:51]}
Bd7 {[%clk 00:07:38]} {[%emt 00:00:50]} 26. Qf2 {[%clk 00:07:46]} {[%emt
00:00:10]} Qc7 {[%clk 00:07:39]} {[%emt 00:00:02]} 27. Nd3 {[%clk 00:07:28]}
{[%emt 00:00:21]} Rh8 {[%clk 00:07:23]} {[%emt 00:00:19]} 28. d5 {[%clk
00:07:15]} {[%emt 00:00:17]} Ree8 {[%clk 00:06:55]} {[%emt 00:00:31]} 29. d6
{[%clk 00:07:12]} {[%emt 00:00:06]} Qd8 {[%clk 00:06:15]} {[%emt 00:00:43]} 30.
Rxb7 {[%clk 00:07:00]} {[%emt 00:00:15]} h3 {[%clk 00:06:17]} {[%emt 00:00:01]}
31. g4 {[%clk 00:06:44]} {[%emt 00:00:19]} h2+ {[%clk 00:06:07]} {[%emt
00:00:13]} 32. Kh1 {[%clk 00:06:32]} {[%emt 00:00:14]} Rh4 {[%clk 00:05:53]}
{[%emt 00:00:18]} 33. Rxa7 {[%clk 00:05:16]} {[%emt 00:01:19]} Reh8 {[%clk
00:05:54]} {[%emt 00:00:01]} 34. e5 {[%clk 00:04:49]} {[%emt 00:00:30]} Rh3
{[%clk 00:04:51]} {[%emt 00:01:06]} 35. e6 {[%clk 00:04:44]} {[%emt 00:00:08]}
Be8 {[%clk 00:04:11]} {[%emt 00:00:43]} 36. exf7 {[%clk 00:04:36]} {[%emt
00:00:11]} Bd7 {[%clk 00:04:12]} {[%emt 00:00:01]} 37. f8=Q+ {[%clk 00:04:22]}
{[%emt 00:00:18]} Rxf8 {[%clk 00:04:04]} {[%emt 00:00:11]} 38. Be6 {[%clk
00:04:21]} {[%emt 00:00:03]} Rf7 {[%clk 00:03:53]} {[%emt 00:00:13]} 39. Bxf7
{[%clk 00:04:13]} {[%emt 00:00:11]} Kxf7 {[%clk 00:03:55]} {[%emt 00:00:01]} 40.
Re1 {[%clk 00:04:13]} {[%emt 00:00:03]} Kg8 {[%clk 00:03:30]} {[%emt 00:00:27]}
41. Qa2+ {[%clk 00:03:45]} {[%emt 00:00:31]} Kh8 {[%clk 00:03:25]} {[%emt
00:00:08]} 42. Kg2 {[%clk 00:03:18]} {[%emt 00:00:31]} Bxg4 {[%clk 00:03:09]}
{[%emt 00:00:19]} 43. fxg4 {[%clk 00:02:33]} {[%emt 00:00:47]} Rxd3 {[%clk
00:03:11]} {[%emt 00:00:02]} 44. Rae7 {[%clk 00:02:18]} {[%emt 00:00:18]} Rd1
{[%clk 00:02:43]} {[%emt 00:00:31]} 45. Rxd1 {[%clk 00:02:14]} {[%emt
00:00:07]} f5 {[%clk 00:02:46]} {[%emt 00:00:01]} 46. Qb2+ {[%clk 00:02:14]}
{[%emt 00:00:02]} Kg8 {[%clk 00:02:47]} {[%emt 00:00:01]} 1-0